fUST/lending_fUST_20260216
["ID","MTS","AMOUNT","RATE_DAILY","PERIOD"]
[405679850,1771242646845,-2228.063,0.00017872,2]
[405679851,1771242646861,-9209.09881221,0.00017885,2]
[405679852,1771242646878,-1845.55063299,0.00017885,2]
[405679853,1771242646891,-500.0,0.0001791,2]
[405679854,1771242646908,-502.9,0.00018008,2]
[405679855,1771242646918,-500.0,0.00018008,2]
[405679856,1771242646929,-500.0,0.00018008,2]
[405679857,1771242646940,-500.0,0.00018008,2]
[405679858,1771242646951,-250.0,0.00018016,2]
[405679859,1771242646962,-250.0,0.00018016,2]
[405679860,1771242646972,-250.0,0.00018016,2]
[405679861,1771242646983,-250.0,0.00018016,2]
[405679862,1771242646993,-250.0,0.00018016,2]
[405679863,1771242647005,-250.0,0.00018016,2]
[405679864,1771242647015,-250.0,0.00018016,2]
[405679865,1771242647027,-250.0,0.00018016,2]
[405679866,1771242647037,-2000.0,0.00018016,2]
[405679867,1771242647048,-2074.0,0.00018016,2]
[405679868,1771242647059,-2150.738,0.00018016,2]
[405679869,1771242647070,-1167.09707226,0.00018016,2]
[405679870,1771242647080,-910.07532802,0.00018052,2]
[405679871,1771242647091,-1405.95105342,0.00018052,2]
[405679891,1771243641134,-265.12851607,0.00015322,2]
[405679892,1771243641161,-57.8930181,0.00015322,14]
[405679895,1771243654080,-101.2769819,0.00015322,14]
[405679896,1771243654101,-218.86843005,0.00015322,2]
[405679897,1771243654122,-776.50442931,0.00015477,2]
[405679904,1771243745111,-1269.11738926,0.00015477,2]
[405679905,1771243745132,-139.79368617,0.00015477,2]
[405679929,1771243832266,-197.41573313,0.00015477,2]
[405679931,1771243832277,-170.94670639,0.00015477,2]
[405679971,1771243838462,-214.0501049,0.00015477,2]
[405679972,1771243838471,-160.2,0.000156,2]
[405679973,1771243838481,-161.90908158,0.000156,2]
[405679974,1771243838490,-191.55816659,0.000156,2]
[405679975,1771243838500,-1477.48177,0.00015639,2]
[405679976,1771243838509,-500.0,0.00016292,2]
[405679977,1771243838518,-300.0,0.00016613,2]
[405679978,1771243838528,-488.40192126,0.00016614,2]
[405679979,1771243838537,-500.0,0.00016614,2]
[405679980,1771243838546,-382.7235373,0.00016614,2]
[405679981,1771243838555,-500.0,0.00016614,2]
[405679982,1771243838564,-123.67541837,0.00016614,2]
[405679989,1771243840515,-194.22294098,0.00016614,2]
[405679990,1771243840525,-931.12295005,0.00016615,2]
[405679999,1771243843503,-3152.7,0.00016615,2]
[405680000,1771243843715,-473.77064054,0.00016615,2]
[405680007,1771243846242,-9807.43946123,0.00016615,2]
[405680008,1771243846253,-500.0,0.00016615,2]
[405680009,1771243846263,-300.0,0.00016617,2]
[405680010,1771243846272,-300.0,0.00016617,2]
[405680011,1771243846284,-300.0,0.00016617,2]
[405680012,1771243846293,-300.0,0.00016617,2]
[405680013,1771243846302,-300.0,0.00016617,2]
[405680014,1771243846311,-300.0,0.00016617,2]
[405680015,1771243846321,-300.0,0.00016617,2]
[405680016,1771243846330,-300.0,0.00016617,2]
[405680017,1771243846339,-300.0,0.00016617,2]
[405680018,1771243846349,-300.0,0.00016617,2]
[405680019,1771243846359,-300.0,0.00016617,2]
[405680020,1771243846368,-300.0,0.00016617,2]
[405680021,1771243846378,-300.0,0.00016617,2]
[405680022,1771243846387,-300.0,0.00016617,2]
[405680023,1771243846397,-300.0,0.00016617,2]
[405680024,1771243846407,-500.0,0.00016889,2]
[405680025,1771243846416,-600.0,0.00016948,2]
[405680026,1771243846425,-500.0,0.00017163,2]
[405680027,1771243846434,-255.08849039,0.00017184,2]
[405680028,1771243846443,-443.32247795,0.00017185,2]
[405680150,1771244540988,500.0,0.0001443,2]
[405680168,1771244635053,624.82407471,0.00015,2]
[405680255,1771244839156,-292.61,0.000153,2]
[405680256,1771244839178,-221.94369655,0.00015305,2]
[405680257,1771244839199,-337.98170727,0.00015312,2]
[405680258,1771244839219,-386.26480831,0.00015312,2]
[405680259,1771244839239,-72.73274196,0.00015312,2]
[405680322,1771244851080,-530.20248226,0.00015312,2]
[405680323,1771244851099,-1151.6561626,0.00015442,2]
[405680324,1771244851119,-300.0,0.00015684,2]
[405680325,1771244851137,-191.04,0.000158,2]
[405680326,1771244851158,-300.0,0.00016115,2]
[405680327,1771244851178,-300.0,0.00016115,2]
[405680328,1771244851198,-1738.26699514,0.00016116,2]
[405680361,1771244949102,-1082.94180248,0.00016016,2]
[405680362,1771244949125,-300.0,0.00016115,2]
[405680363,1771244949150,-27810.56517445,0.00016116,2]
[405680442,1771245038552,-300.0,0.00015311,2]
[405680443,1771245038562,-300.0,0.00015311,2]
[405680444,1771245038573,-300.0,0.00015311,2]
[405680445,1771245038587,-300.0,0.00015311,2]
[405680446,1771245038596,-384.86038801,0.00015311,2]
[405680447,1771245038609,-815.13961199,0.00015311,2]
[405680448,1771245038619,-331.55689729,0.00015312,2]
[405680449,1771245038630,-596.80241512,0.00015312,2]
[405680450,1771245038640,-1060.98207132,0.00015312,2]
[405680451,1771245038651,-1657.78448644,0.00015312,2]
[405680452,1771245038661,-2384.82245082,0.00015312,2]
[405680453,1771245038670,-11977.40344878,0.00015617,2]
[405680454,1771245038680,-300.0,0.00015617,2]
[405680455,1771245038689,-300.0,0.00015617,2]
[405680456,1771245038698,-300.0,0.00015617,2]
[405680457,1771245038707,-300.0,0.00015617,2]
[405680458,1771245038717,-300.0,0.00015617,2]
[405680459,1771245038726,-300.0,0.00015617,2]
[405680460,1771245038737,-300.0,0.00015617,2]
[405680461,1771245038746,-300.0,0.00015617,2]
[405680462,1771245038756,-300.0,0.00015617,2]
[405680463,1771245038766,-300.0,0.00015617,2]
[405680464,1771245038776,-300.0,0.00015617,2]
[405680465,1771245038785,-300.0,0.00015617,2]
[405680466,1771245038795,-300.0,0.00015617,2]
[405680467,1771245038805,-300.0,0.00015617,2]
[405680468,1771245038815,-300.0,0.00015617,2]
[405680469,1771245038825,-2604.44970701,0.00016016,2]
[405680470,1771245038835,-600.0,0.00016335,2]
[405680471,1771245038845,-886.01332,0.00016418,2]
[405680472,1771245038855,-500.0,0.0001661,2]
[405680473,1771245038864,-196.98238969,0.0001661,2]
[405680474,1771245038874,-500.0,0.0001661,2]
[405680475,1771245038883,-500.0,0.00016611,2]
[405680476,1771245038893,-500.0,0.00016613,2]
[405680477,1771245038903,-500.0,0.00016613,2]
[405680478,1771245038913,-500.0,0.00016613,2]
[405680479,1771245038923,-500.0,0.00016613,2]
[405680480,1771245038933,-225.06352581,0.00016613,2]
[405680481,1771245038943,-420.0,0.00016751,2]
[405680482,1771245038953,-300.0,0.00016751,2]
[405680483,1771245038962,-315.0,0.00016751,2]
[405680484,1771245038972,-1200.0,0.00016836,2]
[405680485,1771245038983,-396.65744753,0.00016885,2]
[405680486,1771245038994,-500.0,0.00016887,2]
[405680487,1771245039004,-500.0,0.00016887,2]
[405680488,1771245039014,-500.0,0.00016887,2]
[405680489,1771245039023,-468.27461937,0.00016887,2]
[405680490,1771245039033,-886.01332,0.00017109,2]
[405680491,1771245039043,-500.0,0.00017161,2]
[405680492,1771245039052,-500.0,0.00017161,2]
[405680493,1771245039062,-500.0,0.00017161,2]
[405680494,1771245039073,-1.86935425,0.00017185,2]
[405680583,1771245044020,-1000.49826,0.00017185,2]
[405680586,1771245044034,-5127.22406338,0.00017185,2]
[405680847,1771245046777,-358.17449794,0.00016115,2]
[405680849,1771245046788,-5452.44760662,0.00017185,2]
[405680851,1771245046798,-261.89356193,0.00017305,2]
[405680853,1771245046808,-192.2,0.000174,2]
[405680855,1771245046823,-500.0,0.00017435,2]
[405680858,1771245046835,-500.0,0.00017435,2]
[405680860,1771245046846,-500.0,0.00017435,2]
[405680862,1771245046856,-743.355046,0.00017635,2]
[405680864,1771245046866,-500.0,0.00017709,2]
[405680866,1771245046877,-500.0,0.00017709,2]
[405680868,1771245046888,-500.0,0.00017709,2]
[405680870,1771245046898,-886.01332,0.00017801,2]
[405680872,1771245046909,-161.90908158,0.00017942,20]
[405680874,1771245046919,-720.0,0.00017969,2]
[405680876,1771245046929,-500.0,0.00017983,2]
[405680878,1771245046938,-500.0,0.00017983,2]
[405680880,1771245046948,-500.0,0.00017983,2]
[405680882,1771245046958,-400.0,0.00018,2]
[405680884,1771245046968,-168.0,0.00018052,2]
[405680886,1771245046978,-168.0,0.00018088,2]
[405680888,1771245046988,-168.0,0.00018179,2]
[405680890,1771245046998,-1468.9529623,0.00018188,2]
[405680892,1771245047008,-500.0,0.00018257,2]
[405680894,1771245047018,-500.0,0.00018257,2]
[405680896,1771245047028,-334.40439712,0.00018257,2]
[405680898,1771245047038,-1000.0,0.00018303,5]
[405680900,1771245047048,-168.0,0.00018315,2]
[405680902,1771245047059,-587.0,0.00018328,2]
[405680904,1771245047070,-275.15,0.0001839,3]
[405680906,1771245047080,-825.47,0.0001839,3]
[405680908,1771245047091,-47034.03522937,0.000184,2]
[405680910,1771245047108,-17972.65009733,0.000184,2]
[405680912,1771245047118,-168.0,0.00018461,2]
[405680914,1771245047129,-886.01332,0.00018492,2]
[405680916,1771245047138,-500.0,0.00018531,2]
[405680918,1771245047149,-500.0,0.00018531,2]
[405680920,1771245047158,-168.0,0.0001861,2]
[405680922,1771245047169,-2604.44970701,0.00018642,2]
[405680924,1771245047179,-500.0,0.00018805,2]
[405680926,1771245047189,-500.0,0.00018805,2]
[405680928,1771245047199,-168.0,0.00018902,2]
[405680930,1771245047209,-168.0,0.00018989,2]
[405680932,1771245047219,-174.51098944,0.00019,2]
[405680934,1771245047230,-157.6275854,0.00019018,2]
[405680936,1771245047240,-168.0,0.00019029,2]
[405680938,1771245047250,-168.0,0.00019036,2]
[405680940,1771245047260,-500.0,0.00019079,2]
[405680941,1771245047270,-500.0,0.00019079,2]
[405680943,1771245047280,-160.0,0.00019087,5]
[405680946,1771245047292,-886.01332,0.00019183,2]
[405680948,1771245047303,-168.0,0.00019252,2]
[405680950,1771245047313,-168.0,0.00019257,2]
[405680952,1771245047324,-292.21635314,0.00019305,2]
[405681081,1771245100703,-1288.53029491,0.00015953,2]
[405681125,1771245286735,3711.46970509,0.00015,2]
[405681201,1771246027136,-500.0,0.00015096,2]
[405681202,1771246027158,-209.42262432,0.00015098,2]
[405681203,1771246027179,-207.29,0.000151,2]
[405681204,1771246027202,-235.64191,0.00015106,2]
[405681205,1771246027230,-477.61325368,0.00015284,2]
[405681206,1771246027251,-498.68885415,0.000158,2]
[405681231,1771246039091,-1229.17326666,0.000158,2]
[405681235,1771246043368,-562.08522953,0.000158,2]
[405681261,1771246145089,-10000.0,0.00015109,2]
[405681291,1771246231590,-931.70346316,0.000158,2]
[405681292,1771246231646,-1778.3491865,0.000158,2]
[405681293,1771246231657,-205.23417183,0.00015954,2]
[405681294,1771246231668,-1953.33728031,0.00016009,2]
[405681295,1771246231679,-300.0,0.00016108,2]
[405681296,1771246231689,-300.0,0.00016108,2]
[405681297,1771246231700,-300.0,0.00016108,2]
[405681298,1771246231711,-300.0,0.00016108,2]
[405681299,1771246231722,-300.0,0.00016108,2]
[405681300,1771246231732,-8910.90579097,0.00016109,2]
[405681328,1771246237832,-2606.77159535,0.00016109,2]
[405681335,1771246237899,-2100.09851074,0.00016109,2]
[405682070,1771246245772,-14150.65907169,0.00016109,2]
[405682071,1771246245783,-500.0,0.00016109,2]
[405682072,1771246245793,-500.0,0.00016109,2]
[405682073,1771246245803,-500.0,0.00016109,2]
[405682074,1771246245813,-500.0,0.00016109,2]
[405682075,1771246245822,-500.0,0.00016109,2]
[405682076,1771246245832,-500.0,0.00016109,2]
[405682077,1771246245841,-500.0,0.00016109,2]
[405682078,1771246245851,-451.68216493,0.00016109,2]
[405682079,1771246245861,-500.0,0.00016109,2]
[405682080,1771246245872,-500.0,0.00016109,2]
[405682081,1771246245882,-500.0,0.00016109,2]
[405682082,1771246245891,-500.0,0.00016109,2]
[405682083,1771246245901,-500.0,0.00016109,2]
[405682084,1771246245910,-500.0,0.00016109,2]
[405682085,1771246245919,-500.0,0.00016109,2]
[405682087,1771246245929,-500.0,0.00016109,2]
[405682088,1771246245942,-500.0,0.00016109,2]
[405682090,1771246245952,-566.44451012,0.00016109,2]
[405682092,1771246245961,-500.0,0.00016109,2]
[405682094,1771246245971,-500.0,0.00016109,2]
[405682096,1771246245981,-500.0,0.00016109,2]
[405682098,1771246245990,-500.0,0.00016109,2]
[405682100,1771246246000,-487.83017195,0.00016115,2]
[405682102,1771246246009,-300.0,0.00016436,2]
[405682105,1771246246020,-300.0,0.00016436,2]
[405682107,1771246246029,-300.0,0.00016436,2]
[405682109,1771246246039,-300.0,0.00016436,2]
[405682111,1771246246048,-300.0,0.00016436,2]
[405682113,1771246246057,-300.0,0.00016436,2]
[405682115,1771246246067,-300.0,0.00016436,2]
[405682117,1771246246076,-300.0,0.00016436,2]
[405682119,1771246246086,-300.0,0.00016436,2]
[405682121,1771246246095,-300.0,0.00016436,2]
[405682140,1771246246267,-300.0,0.00016436,2]
[405682142,1771246246277,-300.0,0.00016436,2]
[405682144,1771246246288,-300.0,0.00016436,2]
[405682146,1771246246297,-300.0,0.00016436,2]
[405682148,1771246246307,-300.0,0.00016436,2]
[405682150,1771246246317,-600.0,0.00016436,2]
[405682151,1771246246326,-500.0,0.00016438,2]
[405682153,1771246246336,-500.0,0.00016438,2]
[405682155,1771246246345,-500.0,0.00016438,2]
[405682157,1771246246354,-268.33057306,0.00016464,2]
[405682159,1771246246364,-500.0,0.00016712,2]
[405682161,1771246246373,-500.0,0.00016712,2]
[405682163,1771246246382,-882.67978689,0.00016911,2]
[405682165,1771246246392,-500.0,0.00016986,2]
[405682167,1771246246402,-500.0,0.00016986,2]
[405682169,1771246246411,-500.0,0.0001726,2]
[405682171,1771246246420,-500.0,0.0001726,2]
[405682173,1771246246431,-500.0,0.00017534,2]
[405682175,1771246246440,-500.0,0.00017534,2]
[405682177,1771246246450,-420.0,0.00017609,2]
[405682179,1771246246459,-178.0,0.00017609,2]
[405682181,1771246246469,-743.355046,0.00017655,2]
[405682183,1771246246478,-500.0,0.00017808,2]
[405682185,1771246246488,-500.0,0.00017808,2]
[405682187,1771246246497,-242.17632276,0.00017954,2]
[405682189,1771246246507,-720.0,0.0001808,2]
[405682191,1771246246516,-500.0,0.00018082,2]
[405682193,1771246246525,-500.0,0.00018082,2]
[405682195,1771246246535,-1377.0,0.00018234,2]
[405682197,1771246246544,-500.0,0.00018356,2]
[405682198,1771246246553,-377.20246431,0.00018356,2]
[405682201,1771246246564,-1000.0,0.00018401,5]
[405682202,1771246246573,-1953.33728025,0.00018536,2]
[405682204,1771246246583,-1287.74632011,0.00018538,2]
[405682206,1771246246592,-500.0,0.0001863,2]
[405682208,1771246246602,-500.0,0.00018904,2]
[405682210,1771246246611,-157.6275854,0.00019018,2]
[405682212,1771246246621,-500.0,0.00019178,2]
[405682214,1771246246631,-587.0,0.00019251,2]
[405682216,1771246246640,-550.3,0.00019396,3]
[405682218,1771246246650,-509.84,0.00019405,2]
[405682220,1771246246660,-1452.53056777,0.00019406,2]
[405688670,1771246644826,791.6929879,0.00014258,2]
[405688750,1771246958080,318.0,0.00015,2]
[405688770,1771247239107,-663.37093315,0.00015749,2]
[405688771,1771247252393,-1109.9021838,0.00015749,2]
[405688772,1771247254090,-503.58504496,0.00015908,2]
[405688842,1771247431960,-1159.35987892,0.00015592,2]
[405688845,1771247431976,-1648.53345934,0.00015592,2]
[405688847,1771247431986,-645.0,0.00015592,2]
[405688849,1771247431996,-203.66333054,0.00015655,2]
[405688851,1771247432006,-486.40740354,0.00015717,2]
[405688853,1771247432015,-166.66666666,0.00015908,2]
[405688855,1771247432026,-300.0,0.00016108,2]
[405688857,1771247432036,-1200.0,0.00016108,2]
[405688859,1771247432046,-374.71537718,0.00016109,2]
[405688861,1771247432059,-125.28462282,0.00016109,2]
[405688863,1771247432069,-500.0,0.00016109,2]
[405688865,1771247432078,-500.0,0.00016109,2]
[405688867,1771247432088,-500.0,0.00016109,2]
[405688869,1771247432098,-508.07350869,0.00016111,2]
[405688871,1771247432108,-87.97814569,0.00016428,2]
[405689423,1771247438004,-1807.66876921,0.00016328,2]
[405689425,1771247438016,-213.93223149,0.00016428,2]
[405689427,1771247438026,-500.0,0.00016428,2]
[405689429,1771247438036,-500.0,0.00016428,2]
[405689431,1771247438046,-500.0,0.00016428,2]
[405689433,1771247438056,-500.0,0.00016428,2]
[405689435,1771247438066,-500.0,0.00016428,2]
[405689437,1771247438081,-500.0,0.00016428,2]
[405689440,1771247438091,-345.4815589,0.00016428,2]
[405689658,1771247440307,-73.70788146,0.00016428,2]
[405690070,1771247444974,-80.81055964,0.00016428,2]
[405690072,1771247444988,-500.0,0.00016428,2]
[405690074,1771247444999,-500.0,0.00016428,2]
[405690076,1771247445008,-500.0,0.00016428,2]
[405690078,1771247445018,-500.0,0.00016428,2]
[405690080,1771247445028,-500.0,0.00016428,2]
[405690082,1771247445038,-259.38588897,0.00016428,2]
[405690137,1771247446021,-240.61411103,0.00016428,2]
[405690138,1771247446032,-500.0,0.00016428,2]
[405690139,1771247446042,-436.60508897,0.00016428,2]
[405698677,1771248435109,-235.6419109,0.00015061,2]
[405698678,1771248435135,-210.56893786,0.00015061,2]
[405698679,1771248435159,-637.0,0.00015061,2]
[405698680,1771248435184,-500.0,0.00015788,2]
[405698681,1771248435211,-500.0,0.00015843,2]
[405698682,1771248435236,-500.0,0.00015898,2]
[405698683,1771248435261,-500.0,0.00015952,2]
[405698684,1771248435285,-1027.19673174,0.0001596,2]
[405698685,1771248437107,-780.47203747,0.0001596,2]
[405698686,1771248437131,-212.73,0.00016,2]
[405698687,1771248437156,-298.16783959,0.00016007,2]
[405698704,1771248454916,222.51,0.00015,2]
[405698709,1771248564086,-179.86,0.000157,2]
[405698710,1771248564109,-2141.27630004,0.00015907,2]
[405698711,1771248564132,-201.83216041,0.00016007,2]
[405698712,1771248564154,-241.3205216,0.00016017,2]
[405698713,1771248564326,-300.0,0.00016056,2]
[405698714,1771248564348,-266.37137121,0.00016057,2]
[405698715,1771248564368,-500.0,0.00016057,2]
[405698716,1771248564388,-213.93223149,0.00016057,2]
[405698717,1771248564408,-500.0,0.00016057,2]
[405698718,1771248564429,-500.0,0.00016057,2]
[405698719,1771248564448,-500.0,0.00016057,2]
[405698720,1771248564471,-500.0,0.00016057,2]
[405698721,1771248564491,-500.0,0.00016057,2]
[405698722,1771248564514,-500.0,0.00016057,2]
[405698723,1771248564536,-500.0,0.00016057,2]
[405698724,1771248564555,-500.0,0.00016057,2]
[405698725,1771248564581,-500.0,0.00016057,2]
[405698726,1771248564603,-500.0,0.00016057,2]
[405698727,1771248564630,-500.0,0.00016057,2]
[405698728,1771248564654,-500.0,0.00016057,2]
[405698729,1771248564676,-500.0,0.00016057,2]
[405698730,1771248564695,-514.84192913,0.00016057,2]
[405698731,1771248564717,-500.0,0.00016057,2]
[405698732,1771248564738,-500.0,0.00016057,2]
[405698733,1771248564760,-500.0,0.00016057,2]
[405698734,1771248564779,-500.0,0.00016057,2]
[405698735,1771248564799,-500.0,0.00016057,2]
[405698736,1771248564819,-500.0,0.00016057,2]
[405698737,1771248564845,-500.0,0.00016057,2]
[405698738,1771248564866,-500.0,0.00016057,2]
[405698739,1771248564887,-500.0,0.00016057,2]
[405698740,1771248564908,-500.0,0.00016057,2]
[405698741,1771248564928,-545.99851224,0.00016057,2]
[405698742,1771248564948,-454.32428964,0.00016057,2]
[405698743,1771248564971,-500.0,0.00016057,2]
[405698744,1771248564993,-500.0,0.00016057,2]
[405698745,1771248565014,-500.0,0.00016057,2]
[405698746,1771248565036,-500.0,0.00016057,2]
[405698747,1771248565057,-500.0,0.00016057,2]
[405698748,1771248565080,-500.0,0.00016057,2]
[405698749,1771248565104,-500.0,0.00016057,2]
[405698750,1771248565129,-500.0,0.00016057,2]
[405698751,1771248565151,-500.0,0.00016057,2]
[405698752,1771248565182,-500.0,0.00016057,2]
[405698753,1771248565206,-500.0,0.00016057,2]
[405698754,1771248565228,-500.0,0.00016057,2]
[405698755,1771248565253,-500.0,0.00016057,2]
[405698756,1771248565280,-515.04156067,0.00016057,2]
[405698757,1771248565303,-500.0,0.00016057,2]
[405698758,1771248565329,-500.0,0.00016057,2]
[405698759,1771248565355,-500.0,0.00016057,2]
[405698760,1771248565389,-500.0,0.00016057,2]
[405698761,1771248565419,-500.0,0.00016057,2]
[405698762,1771248565444,-500.0,0.00016057,2]
[405698763,1771248565470,-500.0,0.00016057,2]
[405698764,1771248565495,-500.0,0.00016057,2]
[405698765,1771248565521,-500.0,0.00016057,2]
[405698766,1771248565544,-500.0,0.00016057,2]
[405698767,1771248565568,-500.0,0.00016057,2]
[405698768,1771248565596,-500.0,0.00016057,2]
[405698769,1771248565622,-500.0,0.00016057,2]
[405698770,1771248565649,-500.0,0.00016057,2]
[405698771,1771248565674,-500.0,0.00016057,2]
[405698772,1771248565703,-500.0,0.00016057,2]
[405698773,1771248565737,-259.38133209,0.00016057,2]
[405698774,1771248565765,-500.0,0.00016057,2]
[405698775,1771248565790,-500.0,0.00016057,2]
[405698776,1771248565816,-500.0,0.00016057,2]
[405698777,1771248565841,-500.0,0.00016057,2]
[405698778,1771248565874,-500.0,0.00016057,2]
[405698779,1771248565913,-500.0,0.00016057,2]
[405698780,1771248565939,-500.0,0.00016057,2]
[405698781,1771248565963,-500.0,0.00016057,2]
[405698782,1771248565989,-500.0,0.00016057,2]
[405698783,1771248566015,-500.0,0.00016057,2]
[405698784,1771248566038,-500.0,0.00016057,2]
[405698785,1771248566065,-500.0,0.00016057,2]
[405698786,1771248566094,-500.0,0.00016057,2]
[405698787,1771248566118,-500.0,0.00016057,2]
[405698788,1771248566142,-500.0,0.00016057,2]
[405698789,1771248566164,-500.0,0.00016057,2]
[405698790,1771248566188,-500.0,0.00016057,2]
[405698791,1771248566211,-500.0,0.00016057,2]
[405698792,1771248566237,-500.0,0.00016057,2]
[405698793,1771248566262,-500.0,0.00016057,2]
[405698794,1771248566286,-500.0,0.00016057,2]
[405698795,1771248566312,-500.0,0.00016057,2]
[405698796,1771248566337,-500.0,0.00016057,2]
[405698797,1771248566361,-500.0,0.00016057,2]
[405698798,1771248566387,-500.0,0.00016057,2]
[405698799,1771248566422,-500.0,0.00016057,2]
[405698800,1771248566448,-500.0,0.00016057,2]
[405698801,1771248566476,-500.0,0.00016057,2]
[405698802,1771248566501,-500.0,0.00016057,2]
[405698803,1771248566526,-500.0,0.00016057,2]
[405698804,1771248566551,-500.0,0.00016057,2]
[405698805,1771248566578,-500.0,0.00016057,2]
[405698806,1771248566606,-500.0,0.00016057,2]
[405698807,1771248566637,-500.0,0.00016057,2]
[405698808,1771248566663,-500.0,0.00016057,2]
[405698809,1771248566689,-500.0,0.00016057,2]
[405698810,1771248566716,-500.0,0.00016057,2]
[405698811,1771248566740,-500.0,0.00016057,2]
[405698812,1771248566765,-500.0,0.00016057,2]
[405698813,1771248566791,-500.0,0.00016057,2]
[405698814,1771248566817,-500.0,0.00016057,2]
[405698815,1771248566843,-500.0,0.00016057,2]
[405698816,1771248566868,-500.0,0.00016057,2]
[405698817,1771248566893,-531.67568892,0.00016057,2]
[405698818,1771248566917,-500.0,0.00016057,2]
[405698819,1771248566940,-500.0,0.00016057,2]
[405698820,1771248566965,-500.0,0.00016057,2]
[405698821,1771248566996,-500.0,0.00016057,2]
[405698822,1771248567022,-500.0,0.00016057,2]
[405698823,1771248567047,-500.0,0.00016057,2]
[405698824,1771248567073,-500.0,0.00016057,2]
[405698825,1771248567104,-500.0,0.00016057,2]
[405698826,1771248567130,-500.0,0.00016057,2]
[405698827,1771248567156,-500.0,0.00016057,2]
[405698828,1771248567182,-500.0,0.00016057,2]
[405698829,1771248567207,-500.0,0.00016057,2]
[405698830,1771248567233,-500.0,0.00016057,2]
[405698831,1771248567258,-500.0,0.00016057,2]
[405698832,1771248567284,-500.0,0.00016057,2]
[405698833,1771248567311,-500.0,0.00016057,2]
[405698834,1771248567339,-500.0,0.00016057,2]
[405698835,1771248567366,-500.0,0.00016057,2]
[405698836,1771248567521,-500.0,0.00016057,2]
[405698837,1771248567547,-500.0,0.00016057,2]
[405698838,1771248567577,-500.0,0.00016057,2]
[405698839,1771248567603,-500.0,0.00016057,2]
[405698840,1771248567631,-500.0,0.00016057,2]
[405698841,1771248567656,-500.0,0.00016057,2]
[405698842,1771248567681,-500.0,0.00016057,2]
[405698843,1771248567706,-500.0,0.00016057,2]
[405698844,1771248567731,-500.0,0.00016057,2]
[405698845,1771248567755,-500.0,0.00016057,2]
[405698846,1771248567779,-500.0,0.00016057,2]
[405698847,1771248567801,-500.0,0.00016057,2]
[405698848,1771248567826,-500.0,0.00016057,2]
[405698849,1771248567851,-500.0,0.00016057,2]
[405698850,1771248567877,-500.0,0.00016057,2]
[405698851,1771248567902,-500.0,0.00016057,2]
[405698852,1771248567927,-500.0,0.00016057,2]
[405698853,1771248567953,-500.0,0.00016057,2]
[405698854,1771248567977,-500.0,0.00016057,2]
[405698855,1771248568002,-500.0,0.00016057,2]
[405698856,1771248568029,-500.0,0.00016057,2]
[405698857,1771248568056,-500.0,0.00016057,2]
[405698858,1771248568082,-500.0,0.00016057,2]
[405698859,1771248568107,-500.0,0.00016057,2]
[405698860,1771248568132,-500.0,0.00016057,2]
[405698861,1771248568156,-500.0,0.00016057,2]
[405698862,1771248568181,-500.0,0.00016057,2]
[405698863,1771248568206,-500.0,0.00016057,2]